bitfinex/quotes_ETHUSD_20260107
["timestamp","ask_amount","ask_price","bid_price","bid_amount"]
[1767758124556,0.002,3263.3,3262.7,0.9424983]
[1767758124755,0.94414631,3263.3,3262.6,0.001]
[1767758124955,0.002,3263.3,3262.6,0.9434983]
[1767758125486,0.002,3263.3,3262.7,0.9424983]
[1767758126588,0.002,3263.3,3262.8,0.9424983]
[1767758127583,0.94414631,3263.3,3262.6,0.9434983]
[1767758127973,0.94414631,3263.3,3262.6,0.001]
[1767758128686,4.00855791,3263.3,3262.6,0.9434983]
[1767758129587,0.94414631,3263.3,3262.6,0.9434983]
[1767758130659,0.94414631,3263.3,3262.6,4.00853033]
[1767758130878,0.94414631,3263.3,3262.6,0.9434983]
[1767758131078,4.4093903,3263.3,3262.6,0.9434983]
[1767758131277,0.94214631,3263.2,3262.6,0.9434983]
[1767758132655,4.00663051,3263.2,3262.6,0.9434983]
[1767758133473,0.94214631,3263.2,3262.6,0.9434983]
[1767758133674,4.0066516,3263.2,3262.6,0.9434983]
[1767758133873,4.75404117,3263.2,3262.6,0.9434983]
[1767758135604,1.68953588,3263.2,3262.6,0.9434983]
[1767758136298,4.75405616,3263.2,3262.9,0.001]
[1767758137088,0.002,3263.0,3262.9,0.001]
[1767758147896,0.002,3263.0,3262.9,0.95976654]
[1767758148408,0.002,3263.3,3262.9,0.95976654]
[1767758150489,0.002,3263.0,3262.9,0.95976654]
[1767758150806,0.002,3263.3,3262.9,0.95976654]
[1767758153219,0.94789862,3263.3,3262.9,0.001]
[1767758154589,4.01232499,3263.3,3262.9,0.001]
[1767758158114,4.01232499,3263.3,3262.6,0.001]
[1767758158115,0.94589862,3263.2,3262.6,0.001]
[1767758159412,0.98204138,3263.2,3262.6,0.001]
[1767758159919,6.83850947,3263.3,3262.6,0.98471506]
[1767758160294,7.82055085,3263.3,3262.6,0.98471506]
[1767758160490,0.79002651,3263.2,3262.6,0.98471506]
[1767758160920,0.98204138,3263.0,3262.6,0.001]
[1767758161118,0.98204138,3263.0,3262.0,3.06554081]
[1767758161119,1.06175564,3263.0,3262.0,0.98371506]
[1767758161419,0.98204138,3262.7,3261.5,0.803]
[1767758161722,0.98204138,3262.7,3261.5,3.86899529]
[1767758162523,0.97789901,3262.5,3261.5,3.86899529]
[1767758162726,0.97789901,3262.4,3261.5,3.86899529]
[1767758163322,0.97789901,3262.4,3261.1,0.9495118]
[1767758163516,0.97789901,3262.4,3261.2,0.9495118]
[1767758163517,0.28533225,3262.3,3261.2,0.9495118]
[1767758163725,0.97789901,3262.3,3261.2,0.9495118]
[1767758164521,0.97789901,3262.1,3261.2,0.9495118]
[1767758164706,4.04350293,3262.0,3261.2,0.9495118]
[1767758165022,3.06555484,3262.1,3261.3,0.9495118]
[1767758165530,3.06523779,3262.4,3261.5,0.9495118]
[1767758165699,3.06523779,3262.4,3261.7,0.9495118]
[1767758166718,7.10837459,3262.4,3261.7,0.9495118]
[1767758167518,0.97789901,3262.3,3261.4,0.9495118]
[1767758167905,3.06523779,3262.4,3261.4,0.9495118]
[1767758168237,3.06523779,3262.4,3261.5,0.9495118]
[1767758168912,6.13047558,3262.4,3261.5,0.9495118]
[1767758169804,0.97789901,3262.3,3261.5,0.9495118]
[1767758172204,6.13083194,3262.2,3261.5,0.9495118]
[1767758172625,3.06541597,3262.2,3261.5,0.9495118]
[1767758173809,3.06534711,3262.3,3261.5,0.9495118]
[1767758174822,3.06534711,3262.3,3261.8,0.001]
[1767758175023,0.002,3262.1,3261.8,0.001]
[1767758187915,0.002,3262.1,3261.8,0.9505118]
[1767758192850,0.002,3262.4,3261.9,0.95702903]
[1767758193048,0.93197573,3262.3,3261.8,0.001]
[1767758194227,0.93197573,3262.3,3261.8,3.06678273]
[1767758194428,0.93197573,3262.3,3261.9,0.30667827]
[1767758195125,3.06506428,3262.6,3261.9,0.30667827]
[1767758195126,0.76482242,3262.9,3261.9,10.9087836]
[1767758195321,0.76482242,3262.7,3261.9,11.86581263]
[1767758195525,3.83153001,3263.0,3262.0,0.95702903]
[1767758195754,3.83153001,3263.0,3262.2,0.95702903]
[1767758195755,0.28580864,3262.9,3262.2,0.95702903]
[1767758195962,3.83153001,3263.0,3262.2,0.95702903]
[1767758196253,0.76682242,3263.0,3262.2,0.95702903]
[1767758196432,0.76482242,3262.9,3262.2,3.06539857]
[1767758196631,0.76482242,3262.9,3262.3,0.73174652]
[1767758197764,0.76482242,3262.9,3262.2,3.06539857]
[1767758198132,0.76482242,3262.9,3262.2,3.86839857]
[1767758198755,0.76482242,3262.9,3262.2,6.93381454]
[1767758198956,0.76482242,3262.9,3262.2,3.86839857]
[1767758200563,0.76482242,3262.9,3262.2,3.06539857]
[1767758200743,0.76482242,3262.9,3262.3,0.38683986]
[1767758200940,0.002,3263.0,3262.3,0.38683986]
[1767758201145,0.002,3262.9,3262.3,1.34386889]
[1767758201763,0.002,3262.9,3262.3,4.40918134]
[1767758203366,0.002,3262.9,3262.3,1.34386889]
[1767758204457,0.002,3262.9,3262.4,0.95702903]
[1767758207573,0.002,3262.9,3262.1,3.86847081]
[1767758207574,0.44004564,3262.9,3262.1,0.95702903]
[1767758207935,0.44004564,3262.9,3262.1,1.47026141]
[1767758208140,0.44004564,3262.9,3262.2,0.95702903]
[1767758208353,0.002,3262.9,3262.2,0.95702903]
[1767758212893,0.002,3262.9,3262.3,0.95702903]
[1767758213585,0.002,3262.6,3262.3,0.95702903]
[1767758213793,0.002,3262.9,3262.5,0.95702903]
[1767758225186,0.002,3262.9,3262.5,0.95802903]
[1767758225675,0.002,3262.6,3262.5,0.95802903]
[1767758225985,0.002,3262.9,3262.6,0.96307672]
[1767758237113,0.002,3263.0,3262.6,0.96307672]
[1767758238106,0.002,3263.3,3262.9,0.96307672]
[1767758238391,0.002,3263.3,3262.9,0.96189706]
[1767758240023,0.4412253,3263.3,3262.5,0.001]
[1767758240220,0.51893956,3263.2,3262.5,0.001]
[1767758240521,3.0645705,3263.1,3262.5,0.001]
[1767758240703,3.72957671,3263.1,3262.5,0.001]
[1767758244322,4.16880201,3263.1,3262.5,0.001]
[1767758244508,7.23337251,3263.1,3262.5,0.001]
[1767758244706,6.79414721,3263.1,3262.5,0.001]
[1767758244912,7.23337251,3263.1,3262.5,0.001]
[1767758245113,1.17838386,3263.0,3262.5,0.001]
[1767758245857,0.002,3263.3,3262.5,0.96407672]
[1767758246033,3.06640201,3263.3,3262.7,0.96307672]
[1767758246252,6.57002932,3263.3,3262.6,0.96307672]
[1767758246442,6.57002932,3263.3,3262.3,0.96307672]
[1767758246443,4.00612774,3263.1,3262.3,0.96307672]
[1767758247905,4.00612774,3263.1,3262.3,4.02837134]
[1767758248241,4.00612774,3263.1,3262.4,0.96307672]
[1767758250044,0.94155724,3263.1,3262.5,0.96307672]
[1767758250243,3.06452428,3263.2,3262.5,0.96307672]
[1767758250636,3.06452428,3263.2,3262.7,0.001]
[1767758251630,6.12904856,3263.2,3262.7,0.001]
[1767758251811,0.70726058,3263.1,3262.7,0.001]
[1767758252748,3.06466441,3263.0,3262.7,0.001]
[1767758253222,4.01766285,3263.0,3262.7,0.001]
[1767758255535,0.95299844,3262.6,3261.7,0.92888324]
[1767758255915,1.23879903,3262.5,3261.7,0.92888324]
[1767758256128,0.95299844,3262.5,3261.7,0.92888324]
[1767758256333,0.65806465,3262.4,3261.7,0.92888324]
[1767758257235,3.06532201,3262.3,3261.7,0.92888324]
[1767758259242,3.06522805,3262.4,3261.7,0.92888324]
[1767758259440,3.77356689,3262.4,3261.7,0.92888324]
[1767758260130,0.95299844,3262.3,3261.5,3.06606693]
[1767758260539,0.95299844,3262.3,3261.2,0.92888324]
[1767758260707,0.95299844,3262.3,3261.2,0.95954679]
[1767758260912,0.95299844,3262.2,3261.2,0.95954679]
[1767758261113,3.06532331,3262.3,3261.4,0.92888324]
[1767758261525,4.01832175,3262.3,3261.4,0.92888324]
[1767758261724,0.95299844,3262.2,3261.3,0.70924467]
[1767758262038,0.95299844,3262.2,3261.4,0.92888324]
[1767758262226,3.06532331,3262.3,3261.6,0.92888324]
[1767758262417,3.85247698,3262.3,3261.6,0.92888324]
[1767758262617,0.95299844,3262.2,3261.5,0.001]
[1767758264934,0.95299844,3262.0,3261.5,0.001]
[1767758266745,6.13101988,3262.1,3261.6,0.92888324]
[1767758266940,0.95299844,3261.8,3261.5,0.001]
[1767758268747,4.01864564,3262.0,3261.5,0.001]
[1767758268920,4.7270612,3262.0,3261.5,0.001]
[1767758269247,1.661414,3262.0,3261.5,0.001]
[1767758269833,0.95299844,3262.0,3261.5,0.001]
[1767758270951,3.06525423,3262.4,3261.5,0.92988324]
[1767758271246,4.01817438,3262.5,3261.7,0.92888324]
[1767758271414,3.06517594,3262.5,3261.7,0.92888324]
[1767758271618,0.30651759,3262.4,3261.7,0.92888324]
[1767758272416,0.30651759,3262.4,3261.9,0.92888324]
[1767758272630,3.37174669,3262.4,3261.9,0.92888324]
[1767758273349,7.38997423,3262.4,3261.6,0.92888324]
[1767758273556,0.73899742,3262.3,3261.6,0.92888324]
[1767758274453,3.06541597,3262.2,3262.0,0.001]
[1767758274626,3.06541597,3262.2,3261.6,0.92888324]
[1767758282363,3.80436514,3262.3,3261.6,0.92888324]
[1767758282590,3.14453559,3262.9,3261.7,1.30990868]
[1767758282591,0.803,3262.6,3261.7,1.30990868]
[1767758282869,0.65726696,3262.5,3261.8,0.90767153]
[1767758284546,3.72247935,3262.5,3261.8,0.90767153]
[1767758284755,0.65726696,3262.4,3261.8,0.90767153]
[1767758285234,0.65726696,3262.3,3261.8,0.90767153]
[1767758285439,0.65726696,3262.2,3261.8,0.90767153]
[1767758285672,0.9062577,3262.4,3261.6,3.06597988]
[1767758285854,0.9062577,3262.4,3261.7,3.06587814]
[1767758286064,0.9062577,3262.4,3262.2,0.01756664]
[1767758286770,0.9062577,3262.3,3262.2,0.01756664]
[1767758291350,3.06522721,3262.5,3262.2,0.01756664]
[1767758291555,0.2857679,3262.4,3262.2,0.01756664]
[1767758291755,3.06522721,3262.5,3262.2,0.01756664]
[1767758291976,0.28576733,3262.4,3262.2,0.01756664]
[1767758292146,3.68622639,3262.5,3262.2,0.01756664]
[1767758292347,0.28576433,3262.4,3262.2,0.01756664]
[1767758292547,3.68622639,3262.5,3262.2,0.01756664]
[1767758292749,0.28576435,3262.4,3262.2,0.01756664]
[1767758292949,3.68622639,3262.5,3262.2,0.01756664]
[1767758293149,0.28576418,3262.4,3262.2,0.01756664]
[1767758293365,3.68622639,3262.5,3262.2,0.01756664]
[1767758293679,0.96089054,3262.4,3262.2,0.01756664]
[1767758293974,0.67512874,3262.4,3262.2,0.01756664]
[1767758294777,3.06506099,3262.6,3262.2,0.01756664]
[1767758294979,0.28576046,3262.5,3262.2,0.01756664]
[1767758295145,0.28576046,3262.4,3262.2,0.01756664]
[1767758295450,6.13018223,3262.6,3262.2,0.01756664]
[1767758295650,0.28575422,3262.5,3262.1,0.90767153]
[1767758295849,0.92734787,3262.4,3262.1,0.90767153]
[1767758296078,0.64159365,3262.4,3262.1,0.90767153]
[1767758296378,0.64159365,3262.4,3262.0,0.001]
[1767758297679,6.77223481,3262.4,3262.0,0.001]
[1767758298407,3.70691423,3262.4,3262.0,0.001]
[1767758299057,0.68517945,3262.3,3262.0,0.001]
[1767758300351,3.06532058,3262.4,3262.0,0.001]
[1767758300570,0.28580907,3262.3,3262.0,0.001]
[1767758300777,3.06532058,3262.4,3262.0,0.001]
[1767758300977,0.28580826,3262.3,3262.0,0.001]
[1767758301275,3.06534703,3262.3,3262.0,0.001]
[1767758301678,3.68636976,3262.3,3262.0,0.001]
[1767758303682,6.75171679,3262.3,3262.0,0.001]
[1767758303869,0.9062577,3262.2,3261.6,0.90767153]
[1767758305771,3.06560392,3262.0,3261.6,0.90767153]
[1767758306570,0.9062577,3261.9,3261.5,0.001]
[1767758309286,3.0656059,3262.0,3261.5,0.001]
[1767758309493,3.97167511,3262.2,3261.9,0.001]
[1767758309666,1.05158353,3262.1,3261.9,0.001]
[1767758309872,0.76580978,3262.1,3261.9,0.001]
[1767758311196,1.67206748,3262.1,3261.5,0.001]
[1767758311403,0.28578253,3262.0,3261.5,0.001]
[1767758311698,3.06560392,3262.0,3261.5,0.001]
[1767758312389,0.98184943,3261.9,3261.5,0.001]
[1767758313572,0.98184943,3261.8,3261.5,0.001]
[1767758317771,3.75585906,3261.9,3261.5,0.001]
[1767758317971,3.75585906,3261.9,3261.5,0.92182955]
[1767758321105,3.75585906,3261.9,3261.8,0.001]
[1767758322103,11.29390002,3261.9,3260.6,3.06688184]
[1767758322397,4.5520553,3261.3,3260.2,3.06729254]
[1767758322607,4.5520553,3261.3,3260.7,0.92082955]
[1767758322803,0.07971426,3261.3,3260.7,0.92082955]
[1767758323170,3.06635594,3261.2,3260.7,0.92082955]
[1767758323568,0.07971426,3261.3,3260.7,0.92082955]
[1767758323793,3.14536931,3262.0,3260.8,0.92082955]
[1767758323794,6.13195976,3261.6,3260.8,0.92082955]
[1767758323993,0.9967039,3261.5,3260.8,0.92082955]
[1767758324168,0.71138092,3261.5,3260.8,0.92082955]
[1767758326205,3.0661679,3261.4,3260.8,0.92082955]
[1767758327407,0.71138092,3261.5,3260.8,0.92082955]
[1767758327408,3.06611819,3261.5,3260.8,0.92082955]
[1767758328609,6.13195976,3261.6,3260.8,0.92082955]
[1767758328790,0.61319598,3261.5,3260.6,3.98771141]
[1767758328990,0.98184943,3261.4,3260.6,3.98771141]
[1767758329194,0.98184943,3261.4,3260.6,3.06688186]
[1767758329401,0.61319598,3261.5,3260.7,0.92082955]
[1767758329993,3.67935438,3261.5,3260.7,0.92082955]
[1767758331314,0.07971426,3261.9,3260.7,0.92082955]
[1767758331315,0.07971426,3261.9,3260.9,0.92082955]
[1767758331492,0.07971426,3261.9,3261.1,0.92082955]
[1767758331493,0.28500015,3261.8,3261.1,0.92082955]
[1767758331690,0.28500015,3261.7,3261.1,0.92082955]
[1767758331894,3.06560392,3262.0,3261.1,0.92082955]
[1767758332205,0.28503395,3261.9,3261.1,0.92082955]
[1767758332408,3.06560392,3262.0,3261.1,0.92082955]
[1767758332612,0.71927064,3261.9,3261.1,0.92082955]
[1767758333316,0.71927064,3261.9,3261.4,0.92182955]
[1767758334222,3.78502131,3261.9,3261.4,0.92182955]
[1767758335121,0.98184943,3261.8,3260.3,0.41420548]
[1767758335426,0.98184943,3261.8,3259.5,3.37445502]
[1767758335427,0.98184943,3261.5,3260.6,3.83607404]
[1767758335718,0.98184943,3261.5,3260.7,0.7691969]
[1767758336609,0.98184943,3261.5,3260.8,0.7691969]
[1767758336813,3.06590746,3261.7,3261.0,0.7691969]
[1767758337117,4.04764395,3261.8,3261.1,0.79986139]
[1767758337316,0.07971426,3261.6,3261.1,0.7691969]
[1767758338335,0.07971426,3261.7,3261.1,0.7691969]
[1767758338997,0.07971426,3261.7,3261.2,1.15276895]
[1767758340023,3.14513023,3262.2,3261.2,0.7691969]
[1767758340226,0.07971426,3262.0,3261.2,0.7691969]
[1767758341304,3.14534769,3262.0,3261.2,0.7691969]
[1767758341836,0.07971426,3262.0,3261.3,0.7691969]
[1767758342348,0.9917224,3262.8,3261.6,0.7691969]
[1767758342500,0.9917224,3262.6,3261.7,0.52415379]
[1767758342693,0.9917224,3262.6,3261.4,4.47234104]
[1767758342898,0.9917224,3262.6,3261.3,0.03066261]
[1767758343305,0.9917224,3262.4,3261.4,6.1323358]
[1767758344922,0.9917224,3262.3,3261.4,6.1333358]
[1767758345131,3.06523509,3262.4,3261.6,0.7691969]
[1767758345326,0.002,3262.1,3261.6,0.7691969]
[1767758345499,0.002,3262.1,3261.5,0.61639984]
[1767758346122,0.002,3262.1,3261.5,1.38559674]
[1767758346297,0.002,3262.1,3261.6,0.7691969]
[1767758346500,0.9937224,3262.1,3261.6,0.44527646]
[1767758346718,0.002,3262.1,3261.4,0.7701969]
[1767758346926,0.9937224,3262.1,3261.4,0.7701969]
[1767758347150,4.05924481,3262.1,3261.4,0.7701969]
[1767758348131,0.9937224,3262.1,3261.4,0.7701969]
[1767758348948,0.9937224,3262.1,3261.4,3.83636056]
[1767758349345,0.9937224,3262.1,3261.4,4.526632]
[1767758349550,0.002,3262.1,3261.5,0.7691969]
[1767758350972,0.002,3262.1,3261.5,0.79985763]
[1767758351138,0.002,3262.1,3261.5,3.83519373]
[1767758351335,0.002,3262.1,3261.6,0.7691969]
[1767758352053,0.002,3262.1,3261.8,0.7691969]
[1767758352353,0.002,3262.4,3261.5,6.8913336]
[1767758352648,0.9937224,3262.4,3261.6,0.9733269]
[1767758353429,0.9937224,3262.4,3261.7,6.13177176]
[1767758353625,0.9937224,3262.4,3261.8,0.71357585]
[1767758354952,0.002,3262.4,3261.9,0.9733269]
[1767758355858,0.9917224,3263.1,3262.3,0.9733269]
[1767758356544,4.05631545,3263.1,3262.3,0.9733269]
[1767758357045,3.06451953,3263.2,3262.3,0.9733269]
[1767758357358,3.14612201,3263.3,3262.3,0.9733269]
[1767758357556,0.002,3262.4,3262.3,0.9733269]
[1767758357728,0.9917224,3263.2,3262.2,6.13083194]
[1767758357929,0.9917224,3263.2,3262.3,0.61308319]
[1767758358237,0.9917224,3263.1,3262.3,0.61308319]
[1767758359143,3.06450049,3263.2,3262.4,0.9733269]
[1767758360844,0.9917224,3263.1,3262.4,0.9733269]
[1767758361153,1.07143666,3263.1,3262.4,0.9733269]
[1767758361463,1.79965185,3263.1,3262.4,0.9733269]
[1767758362730,0.9917224,3263.0,3262.2,0.9733269]
[1767758363039,0.9917224,3262.8,3262.0,3.06554602]
[1767758364944,4.05658698,3262.8,3262.0,3.06554602]
[1767758365167,4.05658698,3262.8,3262.1,0.9733269]
[1767758365466,0.72010698,3262.7,3262.1,0.9733269]
[1767758366001,4.05658698,3262.8,3262.1,0.9733269]
[1767758367472,7.12145156,3262.8,3262.1,0.9733269]
[1767758367969,1.07143666,3262.7,3261.8,0.9733269]
[1767758369242,1.07143666,3262.7,3262.4,0.001]
[1767758369473,0.9917224,3262.5,3261.8,0.9733269]
[1767758370846,1.07143666,3262.5,3261.8,0.9733269]
[1767758371958,3.06522805,3262.4,3261.8,0.9733269]
[1767758372842,4.13660872,3262.5,3261.8,0.9733269]
[1767758373071,4.05689446,3262.5,3261.8,0.9733269]
[1767758375181,7.20178078,3262.5,3261.8,0.9733269]
[1767758376055,0.72017808,3262.4,3261.8,0.9733269]
[1767758376252,3.06532201,3262.3,3261.6,0.93711961]
[1767758376782,4.03635855,3262.3,3261.6,0.93711961]
[1767758376985,0.97103654,3262.3,3261.6,0.93711961]
[1767758378672,4.03639411,3262.3,3261.6,0.93711961]
[1767758379866,0.97103654,3262.3,3261.6,4.00309863]
[1767758380066,4.11593166,3262.5,3261.7,0.93711961]
[1767758380380,0.71810023,3262.4,3261.7,0.93711961]
[1767758380673,4.0362174,3262.5,3261.7,0.93711961]
[1767758381396,7.18111252,3262.5,3261.9,0.001]
[1767758382672,4.11593166,3262.5,3261.9,0.001]
[1767758383870,7.18111252,3262.5,3261.9,0.001]
[1767758385401,4.11593166,3262.5,3261.9,0.001]
[1767758386499,4.84200407,3262.5,3261.9,0.001]
[1767758388206,4.76228981,3262.5,3261.9,0.001]
[1767758388401,0.72607241,3262.5,3261.9,0.93811961]
[1767758388708,3.06508569,3262.6,3261.9,0.93811961]
[1767758389378,0.28551522,3262.5,3261.9,0.93811961]
[1767758389680,6.13020284,3262.6,3261.9,0.93811961]
[1767758389882,0.28551504,3262.5,3261.9,0.93811961]
[1767758390082,3.06508569,3262.6,3261.9,0.93811961]
[1767758390279,3.35067345,3262.5,3262.0,0.96777564]
[1767758390605,3.06515841,3262.5,3262.0,0.93711961]
[1767758392510,3.77528113,3262.5,3262.0,0.93711961]
[1767758394383,0.28581153,3262.4,3262.0,0.93711961]
[1767758394582,3.06515841,3262.5,3262.0,0.93711961]
[1767758394782,0.28581177,3262.4,3262.0,0.93711961]
[1767758394984,3.06515841,3262.5,3262.0,0.93711961]
[1767758395185,0.28581188,3262.4,3262.0,0.93711961]
[1767758395487,3.06515841,3262.5,3262.0,0.93711961]
[1767758395811,0.28584478,3262.4,3262.0,0.93711961]
[1767758395983,3.06515841,3262.5,3262.0,0.93711961]
[1767758396187,0.28584497,3262.4,3262.0,0.93711961]
[1767758396413,3.06515841,3262.5,3262.0,0.93711961]
[1767758396612,0.28589967,3262.4,3262.0,0.93711961]
[1767758396804,3.06515841,3262.5,3262.0,0.93711961]
[1767758397003,0.2858998,3262.4,3262.0,0.93711961]
[1767758397211,3.06515841,3262.5,3262.0,0.93711961]
[1767758397413,0.97103654,3262.3,3261.9,0.001]
[1767758397916,3.06515841,3262.5,3261.9,0.93811961]
[1767758398216,0.28597981,3262.4,3261.9,0.93811961]
[1767758398400,0.97103654,3262.3,3261.9,0.001]
[1767758398606,0.97103654,3262.3,3261.9,0.30767742]
[1767758400419,3.06515,3262.5,3261.9,0.30767742]
[1767758400618,0.28608956,3262.4,3261.9,0.30767742]
[1767758400815,3.06515,3262.5,3261.9,3.37336765]
[1767758400816,0.98145465,3262.5,3261.9,3.37336765]
[1767758401016,0.98345465,3262.8,3262.0,0.97185972]
[1767758401204,4.04831902,3262.8,3262.0,0.97185972]
[1767758401410,0.98345465,3262.8,3262.0,1.00251575]
[1767758401618,0.94153183,3262.7,3262.1,0.4069206]
[1767758402122,0.002,3262.8,3262.2,0.94344589]
[1767758402421,0.94353183,3263.1,3262.1,0.4069206]
[1767758402617,0.94353183,3263.1,3262.3,1.74644589]
[1767758402802,0.002,3263.3,3262.5,0.94344589]
[1767758404227,3.06639484,3263.3,3262.5,0.94344589]
[1767758404426,0.94153183,3263.2,3262.4,0.17464459]
[1767758404835,0.94153183,3263.2,3262.4,3.23982374]
[1767758405532,0.94153183,3263.2,3262.4,6.30505179]
[1767758405736,0.002,3263.0,3262.6,0.94344589]
[1767758405917,0.94353183,3263.3,3262.5,0.80524977]
[1767758406431,0.002,3263.3,3262.6,0.94344589]
[1767758407016,0.002,3263.3,3262.7,0.94344589]
[1767758410642,0.002,3263.3,3262.8,0.94344589]
[1767758410842,0.002,3263.3,3263.0,0.94344589]
[1767758411362,0.94353183,3263.3,3262.9,0.40083813]
[1767758412356,0.94353183,3263.3,3262.6,3.06499027]
[1767758412674,0.94353183,3263.3,3262.5,3.06506426]
[1767758412959,0.94353183,3263.3,3262.6,3.06502719]
[1767758413459,0.94353183,3263.3,3262.7,3.06494319]
[1767758415738,0.002,3263.3,3262.7,3.06494319]
[1767758415936,0.002,3263.3,3262.8,0.40083891]
[1767758416145,0.002,3263.3,3262.8,1.3442848]
[1767758416345,0.002,3263.3,3262.9,0.94344589]
[1767758417837,0.002,3263.3,3263.0,0.94444589]
[1767758422578,0.002,3263.3,3262.7,0.94344589]
[1767758422750,0.94153183,3263.1,3262.3,0.001]
[1767758422951,0.94153183,3262.9,3262.3,0.001]
[1767758424373,0.94153183,3262.8,3262.3,0.001]
[1767758424880,1.02124609,3262.8,3262.3,0.001]
[1767758425180,0.94153183,3262.6,3262.3,0.001]
[1767758426194,0.94153183,3262.4,3262.3,0.001]
[1767758426403,3.06513409,3262.5,3262.3,0.001]
[1767758427180,4.00666592,3262.5,3262.3,0.001]
[1767758427389,1.02124609,3262.4,3261.9,0.001]
[1767758427574,0.71515143,3262.3,3261.9,0.001]
[1767758428496,3.06541597,3262.2,3261.9,0.001]
[1767758428680,4.0069478,3262.2,3261.9,0.001]
[1767758429197,7.15207803,3262.2,3261.9,0.001]
[1767758430474,6.2105462,3262.2,3261.9,0.001]
[1767758430676,3.06560392,3262.0,3261.9,0.001]
[1767758431469,0.69256976,3262.1,3261.9,0.001]
[1767758431884,0.07971426,3262.2,3261.9,0.001]
[1767758432596,3.06552293,3262.1,3261.9,0.001]
[1767758436180,6.13104586,3262.1,3261.4,0.91839347]
[1767758436391,1.07009936,3262.0,3261.4,0.001]
[1767758436591,0.9903851,3261.9,3261.4,0.001]
[1767758437290,0.9903851,3261.9,3260.8,3.0666713]
[1767758438011,0.9903851,3261.9,3260.8,3.98406477]
[1767758438313,0.9903851,3261.7,3260.8,3.98406477]
[1767758439217,3.06579189,3261.8,3260.9,0.91739347]
[1767758439505,3.53397178,3261.8,3260.9,0.91739347]
[1767758439707,6.59976367,3261.8,3260.9,0.91739347]
[1767758440097,6.67947793,3261.8,3260.9,0.91739347]
[1767758441213,1.07009936,3261.6,3260.9,0.91739347]
[1767758441413,1.07009936,3261.6,3261.1,0.001]
[1767758441653,3.0661679,3261.4,3261.1,0.001]
[1767758442761,0.9903851,3261.4,3260.7,0.91739347]
[1767758442919,0.002,3261.6,3261.0,0.91739347]
[1767758444419,0.002,3261.6,3261.1,0.91739347]
[1767758445556,3.14745901,3261.9,3261.1,0.91739347]
[1767758445557,0.002,3261.9,3261.2,0.91739347]
[1767758445861,0.002,3261.9,3261.4,0.91739347]
[1767758452338,1.07209936,3261.9,3261.1,0.91739347]
[1767758452752,1.07209936,3261.9,3260.8,3.06669299]
[1767758452939,1.07209936,3261.9,3260.8,0.91739347]
[1767758452940,0.9923851,3261.9,3260.8,0.91739347]
[1767758453260,0.002,3261.9,3261.2,0.91739347]
[1767758453681,0.9923851,3261.9,3261.2,0.91739347]
[1767758453963,0.9923851,3261.9,3260.8,0.91739347]
[1767758454262,3.06579189,3261.8,3261.0,3.98389417]
[1767758454660,4.0581264,3261.9,3261.0,3.98389417]
[1767758454958,3.0677413,3261.9,3261.4,0.001]
[1767758455162,0.002,3261.6,3261.4,0.001]
[1767758457566,0.002,3261.6,3261.4,0.91839347]
[1767758461362,0.002,3261.6,3261.4,0.001]
[1767758467691,0.95107387,3261.6,3261.0,0.91884995]
[1767758467891,1.50138962,3261.6,3261.0,0.91884995]
[1767758468272,1.23501536,3261.5,3260.4,0.91884995]
[1767758468473,1.02878813,3261.5,3260.5,0.91884995]
[1767758469899,0.94907387,3261.3,3260.4,3.06705147]
[1767758470069,0.94907387,3261.3,3260.3,3.87116453]
[1767758470398,7.08140967,3261.4,3260.4,0.91884995]
[1767758470897,4.01524177,3261.4,3260.4,0.91884995]
[1767758471097,7.08140967,3261.4,3260.4,0.91884995]
[1767758471297,4.01524177,3261.4,3260.4,0.91884995]
[1767758471593,0.94907387,3261.3,3260.3,3.87116453]
[1767758471783,0.94907387,3261.2,3260.5,3.06701426]
[1767758472103,3.06631463,3261.3,3260.5,3.98586421]
[1767758472271,3.06631463,3261.3,3260.6,0.91884995]
[1767758474504,6.1323358,3261.4,3260.6,0.91884995]
[1767758474999,3.0661679,3261.4,3260.6,0.91884995]
[1767758475201,1.02878813,3261.2,3260.2,0.91884995]
[1767758475798,1.02878813,3261.2,3260.4,0.91884995]
[1767758475999,0.07971426,3261.2,3260.4,0.91884995]
[1767758476201,0.4094956,3261.3,3260.4,0.91884995]
[1767758476581,3.06635594,3261.2,3260.4,0.91884995]
[1767758476884,0.74912604,3261.1,3260.4,0.91884995]
[1767758477073,0.74544675,3261.1,3260.4,0.91884995]
[1767758478720,0.74544675,3261.1,3260.9,0.001]
[1767758478889,1.35856947,3261.3,3260.9,0.001]
[1767758480210,4.42485324,3261.3,3260.9,0.001]
[1767758480804,0.4094956,3261.3,3260.9,0.91984995]
[1767758481008,0.804,3261.5,3260.9,0.91984995]
[1767758481217,0.806,3261.6,3260.9,0.91984995]
[1767758481394,0.28550723,3261.5,3260.9,0.91984995]
[1767758481595,3.87203834,3261.6,3260.9,0.91984995]
[1767758481783,0.6727113,3261.5,3260.9,0.91984995]
[1767758481979,0.94907387,3261.4,3260.9,0.001]
[1767758482182,0.07971426,3261.3,3260.9,0.001]
[1767758483090,3.14605163,3261.3,3260.9,0.001]
[1767758485089,7.16146287,3261.3,3260.9,0.001]
[1767758485290,0.71614629,3261.2,3260.9,0.001]
[1767758485691,1.66522016,3261.2,3260.9,0.001]
[1767758486013,0.94907387,3261.1,3260.9,0.001]
[1767758487824,3.78257564,3261.2,3260.9,0.001]
[1767758488727,0.71614629,3261.2,3260.9,0.001]
[1767758490821,3.78251196,3261.2,3260.9,0.001]
[1767758491039,0.48113001,3261.1,3260.9,0.001]
[1767758491219,0.56084427,3261.1,3260.9,0.001]
[1767758492439,0.56084427,3261.1,3259.9,0.804]
[1767758492440,0.93171767,3261.0,3260.3,3.06716977]
[1767758492600,0.93171767,3261.0,3260.4,3.06710802]
[1767758492800,0.93171767,3261.0,3260.4,4.01020438]
[1767758493228,0.56084427,3261.1,3260.5,4.01009828]
[1767758493229,0.48113001,3261.1,3260.5,4.01009828]
[1767758493535,4.07771296,3261.3,3260.6,0.94309636]
[1767758493778,0.79478912,3261.2,3260.6,0.94309636]
[1767758493914,0.79478912,3261.2,3261.0,0.01756664]
[1767758494104,0.07971426,3261.1,3261.0,0.01756664]
[1767758494423,1.01143193,3261.1,3260.4,0.94309636]
[1767758494647,4.0778819,3261.1,3260.4,0.94309636]
[1767758494796,0.79390349,3261.0,3260.4,0.94309636]
[1767758496230,0.07971426,3261.3,3260.6,3.06691442]
[1767758496535,0.28587716,3261.2,3260.7,0.94309636]
[1767758496703,0.07971426,3261.3,3260.7,0.94309636]